[Event "Early Titled Tuesday Blitz | February 8 2022"]
[White "Brodowski, Piotr"]
[Black "Di Nicolantonio, Lucas"]
[WhiteFideId "1124480"]
[BlackFideId "680460"]
[WhiteElo "2422"]
[BlackElo "2381"]
[Result "0-1"]
[Round "06"]
[TimeControl "180+1"]
[Date "2022.02.08"]
[WhiteClock "0:00:10"]
[BlackClock "0:00:08"]

1. c4 {[%clk 0:03:00]}  e6 {[%clk 0:02:55]} 2. Nf3 {[%clk 0:03:00]}  Nf6 {[%clk 0:02:55]} 3. e3 {[%clk 0:02:57]}  d5 {[%clk 0:02:54]} 4. b3 {[%clk 0:02:58]}  Be7 {[%clk 0:02:52]} 5. Bb2 {[%clk 0:02:58]}  O-O {[%clk 0:02:52]} 6. Qc2 {[%clk 0:02:58]}  b6 {[%clk 0:02:53]} 7. g3 {[%clk 0:02:51]}  Bb7 {[%clk 0:02:52]} 8. Bg2 {[%clk 0:02:51]}  dxc4 {[%clk 0:02:45]} 9. bxc4 {[%clk 0:02:50]}  Be4 {[%clk 0:02:45]} 10. Qc1 {[%clk 0:02:48]}  c5 {[%clk 0:02:32]} 11. O-O {[%clk 0:02:46]}  Nc6 {[%clk 0:02:29]} 12. Nc3 {[%clk 0:02:29]}  Bd3 {[%clk 0:02:28]} 13. Rd1 {[%clk 0:02:27]}  Bxc4 {[%clk 0:02:04]} 14. d4 {[%clk 0:02:27]}  Qc7 {[%clk 0:01:57]} 15. Ne5 {[%clk 0:02:22]}  Bd5 {[%clk 0:01:39]} 16. e4 {[%clk 0:01:30]}  Nxd4 {[%clk 0:01:22]} 17. Nxd5 {[%clk 0:00:25]}  Nxd5 {[%clk 0:00:27]} 18. exd5 {[%clk 0:00:19]}  Ne2+ {[%clk 0:00:26]} 19. Kf1 {[%clk 0:00:16]}  Nxc1 {[%clk 0:00:27]} 20. Raxc1 {[%clk 0:00:16]}  Rad8 {[%clk 0:00:22]} 21. dxe6 {[%clk 0:00:15]}  fxe6 {[%clk 0:00:19]} 22. Bh3 {[%clk 0:00:15]}  Rf6 {[%clk 0:00:12]} 23. f4 {[%clk 0:00:11]}  h6 {[%clk 0:00:11]} 24. Ke2 {[%clk 0:00:08]}  Rxd1 {[%clk 0:00:10]} 25. Rxd1 {[%clk 0:00:08]}  Bd6 {[%clk 0:00:11]} 26. Nc4 {[%clk 0:00:08]}  Bf8 {[%clk 0:00:07]} 27. Bxf6 {[%clk 0:00:08]}  gxf6 {[%clk 0:00:07]} 28. Bxe6+ {[%clk 0:00:08]}  Kh8 {[%clk 0:00:08]} 29. f5 {[%clk 0:00:09]}  Qg7 {[%clk 0:00:07]} 30. Kf3 {[%clk 0:00:08]}  Qg5 {[%clk 0:00:07]} 31. Rd8 {[%clk 0:00:08]}  Qh5+ {[%clk 0:00:08]} 32. Kf2 {[%clk 0:00:09]}  Qxh2+ {[%clk 0:00:07]} 33. Kf3 {[%clk 0:00:09]}  Qh1+ {[%clk 0:00:08]} 34. Kg4 {[%clk 0:00:10]}  Kg7 {[%clk 0:00:07]} 35. Rd7+ {[%clk 0:00:10]}  Kh8 {[%clk 0:00:07]} 36. Nd2 {[%clk 0:00:10]}  h5+ {[%clk 0:00:08]} 37. Kf4 {[%clk 0:00:10]}  Bh6# {[%clk 0:00:08]} 0-1


[Site "https://www.chess.com"]

[Event "Early Titled Tuesday Blitz | February 8 2022"]
[White "Budrewicz, Krzysztof"]
[Black "Indjic, Aleksandar"]
[WhiteFideId "1127950"]
[BlackFideId "911925"]
[WhiteElo "2248"]
[BlackElo "2616"]
[Result "0-1"]
[Round "06"]
[TimeControl "180+1"]
[Date "2022.02.08"]
[WhiteClock "0:00:02"]
[BlackClock "0:01:30"]

1. d4 {[%clk 0:03:00]}  Nf6 {[%clk 0:02:59]} 2. c4 {[%clk 0:03:00]}  c5 {[%clk 0:02:59]} 3. d5 {[%clk 0:03:00]}  e6 {[%clk 0:03:00]} 4. Nc3 {[%clk 0:03:00]}  exd5 {[%clk 0:03:00]} 5. cxd5 {[%clk 0:03:00]}  d6 {[%clk 0:03:01]} 6. Nf3 {[%clk 0:03:00]}  g6 {[%clk 0:03:01]} 7. Nd2 {[%clk 0:03:01]}  Bg7 {[%clk 0:03:00]} 8. e4 {[%clk 0:03:01]}  O-O {[%clk 0:03:00]} 9. Be2 {[%clk 0:03:02]}  Re8 {[%clk 0:03:00]} 10. O-O {[%clk 0:03:02]}  Nbd7 {[%clk 0:03:00]} 11. Re1 {[%clk 0:03:02]}  Ne5 {[%clk 0:02:59]} 12. h3 {[%clk 0:02:58]}  g5 {[%clk 0:02:58]} 13. Nf1 {[%clk 0:02:56]}  g4 {[%clk 0:02:57]} 14. Bg5 {[%clk 0:02:34]}  gxh3 {[%clk 0:02:55]} 15. g3 {[%clk 0:02:34]}  h6 {[%clk 0:02:54]} 16. Bc1 {[%clk 0:02:10]}  a6 {[%clk 0:02:39]} 17. a4 {[%clk 0:02:10]}  Rb8 {[%clk 0:02:39]} 18. Nh2 {[%clk 0:02:08]}  Bd7 {[%clk 0:02:37]} 19. f4 {[%clk 0:02:05]}  Ng6 {[%clk 0:02:36]} 20. Bf3 {[%clk 0:01:15]}  b5 {[%clk 0:02:34]} 21. axb5 {[%clk 0:01:11]}  axb5 {[%clk 0:02:35]} 22. Ra6 {[%clk 0:00:42]}  b4 {[%clk 0:02:35]} 23. Nb1 {[%clk 0:00:41]}  Bb5 {[%clk 0:02:33]} 24. Ra1 {[%clk 0:00:41]}  c4 {[%clk 0:02:28]} 25. Kh1 {[%clk 0:00:33]}  Ra8 {[%clk 0:01:56]} 26. Rxa8 {[%clk 0:00:32]}  Qxa8 {[%clk 0:01:57]} 27. Nd2 {[%clk 0:00:32]}  c3 {[%clk 0:01:56]} 28. bxc3 {[%clk 0:00:32]}  bxc3 {[%clk 0:01:56]} 29. Nb3 {[%clk 0:00:29]}  Ba4 {[%clk 0:01:55]} 30. Ba3 {[%clk 0:00:17]}  Qb8 {[%clk 0:01:53]} 31. e5 {[%clk 0:00:09]}  dxe5 {[%clk 0:01:52]} 32. f5 {[%clk 0:00:10]}  Nf8 {[%clk 0:01:47]} 33. d6 {[%clk 0:00:05]}  Qxb3 {[%clk 0:01:45]} 34. Qc1 {[%clk 0:00:05]}  N8d7 {[%clk 0:01:40]} 35. Nf1 {[%clk 0:00:05]}  e4 {[%clk 0:01:32]} 36. Bd1 {[%clk 0:00:03]}  Qb5 {[%clk 0:01:32]} 37. Be2 {[%clk 0:00:03]}  Qc6 {[%clk 0:01:32]} 38. Ne3 {[%clk 0:00:03]}  c2 {[%clk 0:01:30]} 39. Bf1 {[%clk 0:00:03]}  Rc8 {[%clk 0:01:30]} 40. Bxh3 {[%clk 0:00:02]}  Ne5 {[%clk 0:01:30]} 41. Bg2 {[%clk 0:00:02]}  Nd3 {[%clk 0:01:30]} 0-1


[Site "https://www.chess.com"]

[Event "Early Titled Tuesday Blitz | February 8 2022"]
[White "Carre, Sylvain"]
[Black "Vetokhin, Ilia"]
[WhiteFideId "642118"]
[BlackFideId "24156078"]
[WhiteElo "2105"]
[BlackElo "1897"]
[Result "0-1"]
[Round "06"]
[TimeControl "180+1"]
[Date "2022.02.08"]
[WhiteClock "0:00:17"]
[BlackClock "0:00:29"]

1. d4 {[%clk 0:02:57]}  Nf6 {[%clk 0:03:00]} 2. Bf4 {[%clk 0:02:55]}  g6 {[%clk 0:02:58]} 3. e3 {[%clk 0:02:56]}  Bg7 {[%clk 0:02:59]} 4. Be2 {[%clk 0:02:56]}  O-O {[%clk 0:02:59]} 5. Nf3 {[%clk 0:02:57]}  c5 {[%clk 0:02:57]} 6. c3 {[%clk 0:02:57]}  b6 {[%clk 0:02:56]} 7. O-O {[%clk 0:02:57]}  Bb7 {[%clk 0:02:57]} 8. Nbd2 {[%clk 0:02:57]}  d6 {[%clk 0:02:57]} 9. h3 {[%clk 0:02:58]}  Nbd7 {[%clk 0:02:56]} 10. Bh2 {[%clk 0:02:59]}  Ne4 {[%clk 0:02:55]} 11. Nxe4 {[%clk 0:02:58]}  Bxe4 {[%clk 0:02:56]} 12. Nd2 {[%clk 0:02:59]}  Bb7 {[%clk 0:02:56]} 13. Bf3 {[%clk 0:02:59]}  Qc7 {[%clk 0:02:57]} 14. Bxb7 {[%clk 0:02:59]}  Qxb7 {[%clk 0:02:57]} 15. Qf3 {[%clk 0:03:00]}  Qxf3 {[%clk 0:02:57]} 16. Nxf3 {[%clk 0:03:01]}  Rfc8 {[%clk 0:02:56]} 17. Rfe1 {[%clk 0:02:58]}  Kf8 {[%clk 0:02:46]} 18. Kf1 {[%clk 0:02:58]}  h6 {[%clk 0:02:45]} 19. Ke2 {[%clk 0:02:59]}  b5 {[%clk 0:02:46]} 20. a3 {[%clk 0:02:52]}  Rab8 {[%clk 0:02:44]} 21. Rec1 {[%clk 0:02:30]}  a5 {[%clk 0:02:44]} 22. Kd3 {[%clk 0:02:21]}  Ke8 {[%clk 0:02:34]} 23. g4 {[%clk 0:02:17]}  a4 {[%clk 0:02:19]} 24. Bf4 {[%clk 0:02:15]}  Nb6 {[%clk 0:02:13]} 25. Nd2 {[%clk 0:02:13]}  Rb7 {[%clk 0:01:54]} 26. Rab1 {[%clk 0:02:10]}  e5 {[%clk 0:01:52]} 27. dxe5 {[%clk 0:02:07]}  dxe5 {[%clk 0:01:51]} 28. Bg3 {[%clk 0:02:07]}  Rd7+ {[%clk 0:01:47]} 29. Kc2 {[%clk 0:02:07]}  Rcd8 {[%clk 0:01:41]} 30. Rd1 {[%clk 0:02:07]}  f5 {[%clk 0:01:36]} 31. gxf5 {[%clk 0:02:08]}  gxf5 {[%clk 0:01:36]} 32. Nf3 {[%clk 0:02:05]}  Nc4 {[%clk 0:01:33]} 33. Nh4 {[%clk 0:01:11]}  Rd2+ {[%clk 0:01:11]} 34. Rxd2 {[%clk 0:01:11]}  Rxd2+ {[%clk 0:01:12]} 35. Kc1 {[%clk 0:01:12]}  f4 {[%clk 0:01:13]} 36. exf4 {[%clk 0:01:08]}  exf4 {[%clk 0:01:14]} 37. Bxf4 {[%clk 0:01:08]}  Rxf2 {[%clk 0:01:13]} 38. Nf5 {[%clk 0:00:44]}  Rxf4 {[%clk 0:00:51]} 39. Nxg7+ {[%clk 0:00:44]}  Kf7 {[%clk 0:00:45]} 40. Nh5 {[%clk 0:00:44]}  Rf3 {[%clk 0:00:45]} 41. Kc2 {[%clk 0:00:32]}  Kg6 {[%clk 0:00:44]} 42. Rg1+ {[%clk 0:00:19]}  Kxh5 {[%clk 0:00:44]} 43. Rg8 {[%clk 0:00:20]}  Rf2+ {[%clk 0:00:42]} 44. Kb1 {[%clk 0:00:20]}  Rxb2+ {[%clk 0:00:41]} 45. Ka1 {[%clk 0:00:21]}  Rb3 {[%clk 0:00:41]} 46. Rc8 {[%clk 0:00:19]}  Rxa3+ {[%clk 0:00:39]} 47. Kb1 {[%clk 0:00:20]}  Rxc3 {[%clk 0:00:39]} 48. Ka1 {[%clk 0:00:18]}  Nd2 {[%clk 0:00:29]} 49. Rxc5+ {[%clk 0:00:17]}  Rxc5 {[%clk 0:00:29]} 0-1


[Site "https://www.chess.com"]

[Event "Early Titled Tuesday Blitz | February 8 2022"]
[White "Coto Mederos, Michel"]
[Black "Zubov, Alexander"]
[WhiteFideId "3508528"]
[BlackFideId "14109409"]
[WhiteElo "2427"]
[BlackElo "2685"]
[Result "0-1"]
[Round "06"]
[TimeControl "180+1"]
[Date "2022.02.08"]
[WhiteClock "0:00:01"]
[BlackClock "0:00:17"]

1. c4 {[%clk 0:02:53]}  c5 {[%clk 0:02:59]} 2. Nc3 {[%clk 0:02:53]}  g6 {[%clk 0:02:59]} 3. Nf3 {[%clk 0:02:50]}  Bg7 {[%clk 0:02:57]} 4. e3 {[%clk 0:02:50]}  Nf6 {[%clk 0:02:57]} 5. d4 {[%clk 0:02:50]}  cxd4 {[%clk 0:02:57]} 6. exd4 {[%clk 0:02:49]}  d5 {[%clk 0:02:57]} 7. cxd5 {[%clk 0:02:35]}  Nxd5 {[%clk 0:02:56]} 8. Be2 {[%clk 0:02:23]}  O-O {[%clk 0:02:55]} 9. O-O {[%clk 0:02:23]}  Nc6 {[%clk 0:02:54]} 10. Re1 {[%clk 0:02:07]}  b6 {[%clk 0:02:41]} 11. Bg5 {[%clk 0:02:05]}  Bb7 {[%clk 0:02:40]} 12. Bb5 {[%clk 0:01:54]}  Rc8 {[%clk 0:02:21]} 13. Rc1 {[%clk 0:01:36]}  Qd6 {[%clk 0:02:16]} 14. Ne4 {[%clk 0:01:12]}  Qb4 {[%clk 0:02:05]} 15. Qd3 {[%clk 0:00:57]}  Nxd4 {[%clk 0:02:02]} 16. Nxd4 {[%clk 0:00:41]}  Qxd4 {[%clk 0:02:01]} 17. Qxd4 {[%clk 0:00:30]}  Bxd4 {[%clk 0:02:01]} 18. b3 {[%clk 0:00:30]}  f6 {[%clk 0:01:51]} 19. Bh6 {[%clk 0:00:30]}  Rfd8 {[%clk 0:01:50]} 20. Rcd1 {[%clk 0:00:26]}  Be5 {[%clk 0:01:15]} 21. Bc4 {[%clk 0:00:19]}  a6 {[%clk 0:00:49]} 22. a4 {[%clk 0:00:14]}  Rd7 {[%clk 0:00:46]} 23. Rd3 {[%clk 0:00:14]}  Rcd8 {[%clk 0:00:46]} 24. Red1 {[%clk 0:00:14]}  Kf7 {[%clk 0:00:45]} 25. h3 {[%clk 0:00:14]}  e6 {[%clk 0:00:44]} 26. g3 {[%clk 0:00:12]}  g5 {[%clk 0:00:43]} 27. f4 {[%clk 0:00:09]}  gxf4 {[%clk 0:00:43]} 28. gxf4 {[%clk 0:00:10]}  Bc7 {[%clk 0:00:31]} 29. f5 {[%clk 0:00:10]}  Be5 {[%clk 0:00:27]} 30. fxe6+ {[%clk 0:00:08]}  Kxe6 {[%clk 0:00:28]} 31. Be3 {[%clk 0:00:07]}  Kf5 {[%clk 0:00:26]} 32. Bxd5 {[%clk 0:00:06]}  Rxd5 {[%clk 0:00:26]} 33. Rxd5 {[%clk 0:00:04]}  Rxd5 {[%clk 0:00:27]} 34. Rxd5 {[%clk 0:00:05]}  Bxd5 {[%clk 0:00:27]} 35. Nd2 {[%clk 0:00:05]}  b5 {[%clk 0:00:28]} 36. axb5 {[%clk 0:00:05]}  axb5 {[%clk 0:00:28]} 37. Kf2 {[%clk 0:00:06]}  h5 {[%clk 0:00:28]} 38. Bc5 {[%clk 0:00:05]}  h4 {[%clk 0:00:27]} 39. Ke2 {[%clk 0:00:05]}  Bg2 {[%clk 0:00:27]} 40. Be3 {[%clk 0:00:03]}  Bxh3 {[%clk 0:00:26]} 41. Bf2 {[%clk 0:00:04]}  Bg4+ {[%clk 0:00:26]} 42. Kd3 {[%clk 0:00:03]}  h3 {[%clk 0:00:27]} 43. Bg1 {[%clk 0:00:03]}  h2 {[%clk 0:00:27]} 44. Bxh2 {[%clk 0:00:03]}  Bxh2 {[%clk 0:00:27]} 45. b4 {[%clk 0:00:04]}  Bd6 {[%clk 0:00:26]} 46. Nb3 {[%clk 0:00:04]}  Be5 {[%clk 0:00:22]} 47. Nc5 {[%clk 0:00:04]}  Bh3 {[%clk 0:00:21]} 48. Nd7 {[%clk 0:00:02]}  Bf1+ {[%clk 0:00:21]} 49. Kc2 {[%clk 0:00:02]}  Ke4 {[%clk 0:00:20]} 50. Nc5+ {[%clk 0:00:02]}  Kd4 {[%clk 0:00:20]} 51. Nb3+ {[%clk 0:00:03]}  Kd5 {[%clk 0:00:20]} 52. Nd2 {[%clk 0:00:04]}  Bc4 {[%clk 0:00:19]} 53. Nf3 {[%clk 0:00:05]}  f5 {[%clk 0:00:20]} 54. Ne1 {[%clk 0:00:04]}  f4 {[%clk 0:00:20]} 55. Kd2 {[%clk 0:00:05]}  Bd4 {[%clk 0:00:20]} 56. Nc2 {[%clk 0:00:06]}  f3 {[%clk 0:00:19]} 57. Ne3+ {[%clk 0:00:02]}  Ke4 {[%clk 0:00:19]} 58. Ng4 {[%clk 0:00:02]}  f2 {[%clk 0:00:18]} 59. Nh2 {[%clk 0:00:01]}  Be5 {[%clk 0:00:18]} 60. Nf1 {[%clk 0:00:01]}  Bxf1 {[%clk 0:00:17]} 0-1


[Site "https://www.chess.com"]

[Event "Early Titled Tuesday Blitz | February 8 2022"]
[White "Cunjalo, Faris"]
[Black "De Silva, L M S T"]
[WhiteFideId "14410710"]
[BlackFideId "9953698"]
[WhiteElo "2263"]
[BlackElo "1631"]
[Result "1/2-1/2"]
[Round "06"]
[TimeControl "180+1"]
[Date "2022.02.08"]
[WhiteClock "0:00:04"]
[BlackClock "0:00:19"]

1. c4 {[%clk 0:03:00]}  e5 {[%clk 0:02:59]} 2. g3 {[%clk 0:03:00]}  Nf6 {[%clk 0:02:59]} 3. Bg2 {[%clk 0:03:00]}  d5 {[%clk 0:02:59]} 4. cxd5 {[%clk 0:03:00]}  Nxd5 {[%clk 0:03:00]} 5. Nf3 {[%clk 0:03:01]}  Nc6 {[%clk 0:03:00]} 6. O-O {[%clk 0:03:01]}  Nb6 {[%clk 0:02:59]} 7. b3 {[%clk 0:03:02]}  Be6 {[%clk 0:02:57]} 8. Bb2 {[%clk 0:03:02]}  f6 {[%clk 0:02:57]} 9. Nc3 {[%clk 0:02:57]}  Qd7 {[%clk 0:02:57]} 10. d4 {[%clk 0:02:58]}  exd4 {[%clk 0:02:56]} 11. Nb5 {[%clk 0:02:58]}  O-O-O {[%clk 0:02:57]} 12. Rc1 {[%clk 0:02:51]}  d3 {[%clk 0:02:48]} 13. Nfd4 {[%clk 0:02:50]}  Nxd4 {[%clk 0:02:46]} 14. Nxd4 {[%clk 0:02:46]}  Bd5 {[%clk 0:02:38]} 15. Qxd3 {[%clk 0:02:46]}  Bxg2 {[%clk 0:02:38]} 16. Kxg2 {[%clk 0:02:47]}  Kb8 {[%clk 0:02:33]} 17. Rfd1 {[%clk 0:02:46]}  Bd6 {[%clk 0:02:24]} 18. Nb5 {[%clk 0:02:34]}  Qe6 {[%clk 0:02:20]} 19. a4 {[%clk 0:01:57]}  a6 {[%clk 0:02:15]} 20. Nd4 {[%clk 0:01:56]}  Qd7 {[%clk 0:02:08]} 21. a5 {[%clk 0:01:52]}  Nd5 {[%clk 0:02:06]} 22. Qf3 {[%clk 0:01:47]}  Ne7 {[%clk 0:02:02]} 23. Rc4 {[%clk 0:01:39]}  h5 {[%clk 0:02:00]} 24. h3 {[%clk 0:01:34]}  g5 {[%clk 0:01:57]} 25. Qxf6 {[%clk 0:01:34]}  g4 {[%clk 0:01:51]} 26. h4 {[%clk 0:01:34]}  Rdf8 {[%clk 0:01:46]} 27. Qe6 {[%clk 0:01:34]}  Qe8 {[%clk 0:01:41]} 28. Nc2 {[%clk 0:01:01]}  Rh7 {[%clk 0:01:38]} 29. Bd4 {[%clk 0:00:24]}  Rhf7 {[%clk 0:01:33]} 30. Be3 {[%clk 0:00:24]}  Qb5 {[%clk 0:01:17]} 31. Rxd6 {[%clk 0:00:21]}  cxd6 {[%clk 0:01:18]} 32. Qxd6+ {[%clk 0:00:22]}  Ka8 {[%clk 0:01:17]} 33. Nb4 {[%clk 0:00:11]}  Nf5 {[%clk 0:00:56]} 34. Qe6 {[%clk 0:00:05]}  Nxe3+ {[%clk 0:00:53]} 35. Qxe3 {[%clk 0:00:06]}  Rxf2+ {[%clk 0:00:52]} 36. Qxf2 {[%clk 0:00:07]}  Rxf2+ {[%clk 0:00:52]} 37. Kxf2 {[%clk 0:00:08]}  Qxa5 {[%clk 0:00:52]} 38. Nd3 {[%clk 0:00:08]}  Qb5 {[%clk 0:00:51]} 39. Rc3 {[%clk 0:00:08]}  Ka7 {[%clk 0:00:50]} 40. b4 {[%clk 0:00:08]}  Qd5 {[%clk 0:00:45]} 41. Rc5 {[%clk 0:00:09]}  Qh1 {[%clk 0:00:45]} 42. Nf4 {[%clk 0:00:07]}  Qb1 {[%clk 0:00:43]} 43. Nd3 {[%clk 0:00:08]}  Qh1 {[%clk 0:00:39]} 44. Nf4 {[%clk 0:00:08]}  Qa1 {[%clk 0:00:34]} 45. Nd3 {[%clk 0:00:07]}  Qh8 {[%clk 0:00:34]} 46. Re5 {[%clk 0:00:06]}  Kb6 {[%clk 0:00:28]} 47. Kg2 {[%clk 0:00:06]}  Qh6 {[%clk 0:00:23]} 48. Rg5 {[%clk 0:00:05]}  Ka7 {[%clk 0:00:22]} 49. Kf2 {[%clk 0:00:04]}  Qf6+ {[%clk 0:00:22]} 50. Kg2 {[%clk 0:00:04]}  Qe6 {[%clk 0:00:21]} 51. Re5 {[%clk 0:00:05]}  Qa2 {[%clk 0:00:20]} 52. Kf2 {[%clk 0:00:05]}  Qb1 {[%clk 0:00:20]} 53. Rxh5 {[%clk 0:00:05]}  Qh1 {[%clk 0:00:20]} 54. Nf4 {[%clk 0:00:06]}  Qb1 {[%clk 0:00:20]} 55. Nd3 {[%clk 0:00:07]}  Qh1 {[%clk 0:00:20]} 56. Ne1 {[%clk 0:00:03]}  Qe4 {[%clk 0:00:19]} 57. Nd3 {[%clk 0:00:04]}  Qh1 {[%clk 0:00:19]} 1/2-1/2


[Site "https://www.chess.com"]

[Event "Early Titled Tuesday Blitz | February 8 2022"]
[White "Dahanayake, Isara Banidu"]
[Black "Dobre, Claudiu-Cristian"]
[WhiteFideId "9932631"]
[BlackFideId "1211854"]
[WhiteElo "1394"]
[BlackElo "2207"]
[Result "0-1"]
[Round "06"]
[TimeControl "180+1"]
[Date "2022.02.08"]
[WhiteClock "0:02:03"]
[BlackClock "0:02:25"]

1. e4 {[%clk 0:03:00]}  Nc6 {[%clk 0:03:00]} 2. d4 {[%clk 0:02:57]}  d5 {[%clk 0:02:59]} 3. exd5 {[%clk 0:02:39]}  Qxd5 {[%clk 0:02:59]} 4. Nf3 {[%clk 0:02:39]}  e5 {[%clk 0:02:59]} 5. dxe5 {[%clk 0:02:24]}  Qxd1+ {[%clk 0:02:58]} 6. Kxd1 {[%clk 0:02:24]}  Bg4 {[%clk 0:02:59]} 7. Be2 {[%clk 0:02:21]}  O-O-O+ {[%clk 0:02:58]} 8. Nbd2 {[%clk 0:02:17]}  Bc5 {[%clk 0:02:41]} 9. Ke1 {[%clk 0:02:08]}  Nb4 {[%clk 0:02:40]} 10. Bd1 {[%clk 0:02:03]}  Ne7 {[%clk 0:02:35]} 11. c3 {[%clk 0:02:03]}  Nd3+ {[%clk 0:02:34]} 12. Kf1 {[%clk 0:02:03]}  Nxf2 {[%clk 0:02:25]} 0-1


[Site "https://www.chess.com"]

[Event "Early Titled Tuesday Blitz | February 8 2022"]
[White "De Arruda, Leandro Formes"]
[Black "Flis, Pawel"]
[WhiteFideId "22722009"]
[BlackFideId "1112864"]
[WhiteElo "1780"]
[BlackElo "1735"]
[Result "1-0"]
[Round "06"]
[TimeControl "180+1"]
[Date "2022.02.08"]
[WhiteClock "0:00:10"]
[BlackClock "0:00:08"]

1. d4 {[%clk 0:02:59]}  Nf6 {[%clk 0:02:59]} 2. Nf3 {[%clk 0:03:00]}  g6 {[%clk 0:02:59]} 3. g3 {[%clk 0:02:59]}  Bg7 {[%clk 0:02:59]} 4. Bg2 {[%clk 0:03:00]}  O-O {[%clk 0:02:59]} 5. O-O {[%clk 0:03:01]}  d6 {[%clk 0:02:59]} 6. Re1 {[%clk 0:03:00]}  Nbd7 {[%clk 0:02:56]} 7. Nbd2 {[%clk 0:03:00]}  e5 {[%clk 0:02:55]} 8. c3 {[%clk 0:02:59]}  c6 {[%clk 0:02:55]} 9. Qc2 {[%clk 0:02:57]}  Qc7 {[%clk 0:02:54]} 10. b3 {[%clk 0:02:56]}  Nb6 {[%clk 0:02:53]} 11. Bb2 {[%clk 0:02:56]}  Re8 {[%clk 0:02:49]} 12. Rac1 {[%clk 0:02:55]}  a5 {[%clk 0:02:47]} 13. a4 {[%clk 0:02:54]}  exd4 {[%clk 0:02:42]} 14. cxd4 {[%clk 0:02:50]}  Nbd5 {[%clk 0:02:36]} 15. Ba3 {[%clk 0:02:46]}  Nb4 {[%clk 0:02:31]} 16. Bxb4 {[%clk 0:02:44]}  axb4 {[%clk 0:02:32]} 17. e4 {[%clk 0:02:42]}  Bg4 {[%clk 0:02:28]} 18. h4 {[%clk 0:02:42]}  Qd7 {[%clk 0:02:11]} 19. Nc4 {[%clk 0:02:29]}  Rad8 {[%clk 0:02:00]} 20. Nh2 {[%clk 0:02:09]}  Bh3 {[%clk 0:01:54]} 21. Nb6 {[%clk 0:02:01]}  Qc7 {[%clk 0:01:46]} 22. Bxh3 {[%clk 0:01:58]}  Qxb6 {[%clk 0:01:46]} 23. Rcd1 {[%clk 0:01:54]}  h5 {[%clk 0:01:39]} 24. Nf3 {[%clk 0:01:48]}  Ng4 {[%clk 0:01:34]} 25. Bxg4 {[%clk 0:01:45]}  hxg4 {[%clk 0:01:34]} 26. Nh2 {[%clk 0:01:46]}  Bxd4 {[%clk 0:01:29]} 27. Nxg4 {[%clk 0:01:46]}  Bc3 {[%clk 0:01:27]} 28. Re3 {[%clk 0:01:44]}  Kg7 {[%clk 0:01:19]} 29. Rxc3 {[%clk 0:01:36]}  bxc3 {[%clk 0:01:14]} 30. Qxc3+ {[%clk 0:01:37]}  Kf8 {[%clk 0:00:56]} 31. Re1 {[%clk 0:01:06]}  Qc5 {[%clk 0:00:49]} 32. Qh8+ {[%clk 0:01:02]}  Ke7 {[%clk 0:00:49]} 33. Qf6+ {[%clk 0:01:02]}  Kf8 {[%clk 0:00:49]} 34. Nh6 {[%clk 0:00:58]}  Rd7 {[%clk 0:00:39]} 35. Qh8+ {[%clk 0:00:33]}  Ke7 {[%clk 0:00:38]} 36. Ng8+ {[%clk 0:00:30]}  Kd8 {[%clk 0:00:34]} 37. Qf6+ {[%clk 0:00:29]}  Kc7 {[%clk 0:00:32]} 38. Nh6 {[%clk 0:00:28]}  Qe5 {[%clk 0:00:28]} 39. Qf3 {[%clk 0:00:24]}  g5 {[%clk 0:00:24]} 40. Nxf7 {[%clk 0:00:21]}  Qe7 {[%clk 0:00:17]} 41. Nxg5 {[%clk 0:00:20]}  Rf8 {[%clk 0:00:17]} 42. Qg4 {[%clk 0:00:20]}  Qg7 {[%clk 0:00:15]} 43. Ne6+ {[%clk 0:00:18]}  Kb6 {[%clk 0:00:11]} 44. Nxg7 {[%clk 0:00:18]}  Rxg7 {[%clk 0:00:12]} 45. Qxg7 {[%clk 0:00:18]}  Re8 {[%clk 0:00:11]} 46. Qg6 {[%clk 0:00:17]}  Kc7 {[%clk 0:00:10]} 47. Qxe8 {[%clk 0:00:17]}  Kb6 {[%clk 0:00:09]} 48. Qd8+ {[%clk 0:00:16]}  Kc5 {[%clk 0:00:10]} 49. Rc1+ {[%clk 0:00:15]}  Kd4 {[%clk 0:00:10]} 50. Qxd6+ {[%clk 0:00:16]}  Kxe4 {[%clk 0:00:10]} 51. Re1+ {[%clk 0:00:14]}  Kf5 {[%clk 0:00:10]} 52. Re5+ {[%clk 0:00:10]}  Kg4 {[%clk 0:00:09]} 53. Qe6+ {[%clk 0:00:10]}  Kf3 {[%clk 0:00:08]} 54. Qf5# {[%clk 0:00:10]} 1-0


[Site "https://www.chess.com"]

[Event "Early Titled Tuesday Blitz | February 8 2022"]
[White "Deac, Bogdan-Daniel"]
[Black "Ozen, Deniz"]
[WhiteFideId "1226380"]
[BlackFideId "6349196"]
[WhiteElo "2646"]
[BlackElo "2326"]
[Result "1-0"]
[Round "06"]
[TimeControl "180+1"]
[Date "2022.02.08"]
[WhiteClock "0:00:03"]
[BlackClock "0:00:01"]

1. e4 {[%clk 0:03:00]}  e5 {[%clk 0:03:00]} 2. Nf3 {[%clk 0:03:00]}  Nf6 {[%clk 0:03:01]} 3. Nxe5 {[%clk 0:02:59]}  d5 {[%clk 0:03:01]} 4. exd5 {[%clk 0:02:56]}  Qxd5 {[%clk 0:03:02]} 5. Nf3 {[%clk 0:02:48]}  Bg4 {[%clk 0:03:00]} 6. Nc3 {[%clk 0:02:43]}  Qh5 {[%clk 0:03:00]} 7. Qe2+ {[%clk 0:02:40]}  Kd8 {[%clk 0:02:47]} 8. h3 {[%clk 0:01:09]}  Bd6 {[%clk 0:02:45]} 9. d3 {[%clk 0:01:04]}  Nc6 {[%clk 0:02:31]} 10. Be3 {[%clk 0:00:32]}  Re8 {[%clk 0:02:27]} 11. Qd1 {[%clk 0:00:16]}  Bb4 {[%clk 0:01:31]} 12. Be2 {[%clk 0:00:16]}  Nd5 {[%clk 0:01:32]} 13. Qd2 {[%clk 0:00:11]}  Nxe3 {[%clk 0:00:35]} 14. fxe3 {[%clk 0:00:11]}  Be6 {[%clk 0:00:34]} 15. a3 {[%clk 0:00:10]}  Ba5 {[%clk 0:00:34]} 16. O-O-O {[%clk 0:00:10]}  Qh6 {[%clk 0:00:21]} 17. e4 {[%clk 0:00:07]}  Qg6 {[%clk 0:00:19]} 18. d4 {[%clk 0:00:06]}  Bd7 {[%clk 0:00:15]} 19. Bd3 {[%clk 0:00:06]}  Kc8 {[%clk 0:00:13]} 20. Qf4 {[%clk 0:00:04]}  Bxc3 {[%clk 0:00:12]} 21. bxc3 {[%clk 0:00:05]}  f6 {[%clk 0:00:13]} 22. e5 {[%clk 0:00:05]}  Qf7 {[%clk 0:00:13]} 23. exf6 {[%clk 0:00:05]}  gxf6 {[%clk 0:00:14]} 24. Rhe1 {[%clk 0:00:05]}  Rd8 {[%clk 0:00:13]} 25. g4 {[%clk 0:00:04]}  Qa2 {[%clk 0:00:13]} 26. Kd2 {[%clk 0:00:04]}  Qxa3 {[%clk 0:00:13]} 27. Qxf6 {[%clk 0:00:04]}  Rf8 {[%clk 0:00:13]} 28. Qg7 {[%clk 0:00:02]}  Rxf3 {[%clk 0:00:13]} 29. Qxh7 {[%clk 0:00:03]}  Rf2+ {[%clk 0:00:11]} 30. Re2 {[%clk 0:00:02]}  Rxe2+ {[%clk 0:00:11]} 31. Kxe2 {[%clk 0:00:03]}  Qxc3 {[%clk 0:00:09]} 32. Qh8+ {[%clk 0:00:04]}  Nd8 {[%clk 0:00:09]} 33. Rf1 {[%clk 0:00:04]}  Qa5 {[%clk 0:00:04]} 34. Rf8 {[%clk 0:00:04]}  c6 {[%clk 0:00:05]} 35. Kf2 {[%clk 0:00:03]}  Qc7 {[%clk 0:00:05]} 36. Qf6 {[%clk 0:00:02]}  Qh2+ {[%clk 0:00:05]} 37. Ke1 {[%clk 0:00:03]}  Qc7 {[%clk 0:00:05]} 38. g5 {[%clk 0:00:03]}  b5 {[%clk 0:00:05]} 39. g6 {[%clk 0:00:03]}  Kb7 {[%clk 0:00:05]} 40. g7 {[%clk 0:00:04]}  Be6 {[%clk 0:00:05]} 41. h4 {[%clk 0:00:04]}  Qg3+ {[%clk 0:00:04]} 42. Kd2 {[%clk 0:00:04]}  Qg2+ {[%clk 0:00:03]} 43. Kc1 {[%clk 0:00:04]}  Qg1+ {[%clk 0:00:02]} 44. Kb2 {[%clk 0:00:04]}  b4 {[%clk 0:00:01]} 45. Qe7+ {[%clk 0:00:03]}  Kb6 {[%clk 0:00:01]} 46. Rxd8 {[%clk 0:00:03]} 1-0


[Site "https://www.chess.com"]